[Event "Early-Titled-Tuesday-Blitz-July-09-2024"]
[Site "Chess.com"]
[Date "2024.07.09"]
[Round "2"]
[White "malakismayil"]
[Black "Marielchessy"]
[Result "1-0"]
[WhiteElo "2531"]
[BlackElo "2323"]
[TimeControl "180+1"]
[EndTime "8:14:45 PDT"]
[Termination "malakismayil won by resignation"]

1. e4 {[%clk 0:03:00.9]} 1... c5 {[%clk 0:02:59]} 2. Nf3 {[%clk 0:03:01.3]} 2...
d6 {[%clk 0:02:58.4]} 3. Bb5+ {[%clk 0:03:00.9]} 3... Bd7 {[%clk 0:02:58]} 4.
Bxd7+ {[%clk 0:03:00.4]} 4... Qxd7 {[%clk 0:02:58.5]} 5. O-O {[%clk 0:02:59.8]}
5... Nc6 {[%clk 0:02:58.9]} 6. c4 {[%clk 0:03:00]} 6... g6 {[%clk 0:02:58.4]} 7.
d4 {[%clk 0:02:57.6]} 7... cxd4 {[%clk 0:02:58.4]} 8. Nxd4 {[%clk 0:02:58.5]}
8... Bg7 {[%clk 0:02:58.7]} 9. Be3 {[%clk 0:02:58.6]} 9... Nf6 {[%clk 0:02:59]}
10. f3 {[%clk 0:02:58.8]} 10... O-O {[%clk 0:02:58.9]} 11. Nc3 {[%clk
0:02:58.9]} 11... Rfc8 {[%clk 0:02:59.1]} 12. b3 {[%clk 0:02:58.7]} 12... Qd8
{[%clk 0:02:59.3]} 13. Rc1 {[%clk 0:02:58.2]} 13... Qa5 {[%clk 0:02:59.2]} 14.
Qd2 {[%clk 0:02:58.8]} 14... Qh5 {[%clk 0:02:58]} 15. Rfd1 {[%clk 0:02:57.9]}
15... Ne5 {[%clk 0:02:51.8]} 16. Nde2 {[%clk 0:02:55.1]} 16... a6 {[%clk
0:02:36.9]} 17. Nf4 {[%clk 0:02:53.9]} 17... Nxf3+ {[%clk 0:02:36.8]} 18. gxf3
{[%clk 0:02:52.2]} 18... Qxf3 {[%clk 0:02:36.7]} 19. Rf1 {[%clk 0:02:49.1]}
19... Qg4+ {[%clk 0:02:31.8]} 20. Qg2 {[%clk 0:02:48.9]} 20... Qd7 {[%clk
0:02:27.2]} 21. Ncd5 {[%clk 0:02:46]} 21... Ng4 {[%clk 0:02:24.2]} 22. Qg3
{[%clk 0:02:12.7]} 22... Nxe3 {[%clk 0:02:18.6]} 23. Qxe3 {[%clk 0:02:13.6]}
23... Qd8 {[%clk 0:02:16.5]} 24. Nb6 {[%clk 0:02:09.1]} 24... Rab8 {[%clk
0:02:15.4]} 25. Nxc8 {[%clk 0:02:08.9]} 25... Rxc8 {[%clk 0:02:15.1]} 26. Nd5
{[%clk 0:02:09.1]} 26... e6 {[%clk 0:02:14]} 27. Nf4 {[%clk 0:02:01.3]} 27...
Qa5 {[%clk 0:02:09.2]} 28. Qe2 {[%clk 0:01:55.8]} 28... Bh6 {[%clk 0:02:05.6]}
29. Rcd1 {[%clk 0:01:51.6]} 29... Rc5 {[%clk 0:02:00.9]} 30. Kh1 {[%clk
0:01:48.4]} 30... b5 {[%clk 0:01:51.2]} 31. b4 {[%clk 0:01:46.1]} 31... Qxb4
{[%clk 0:01:50]} 32. Nd3 {[%clk 0:01:18]} 32... Qxc4 {[%clk 0:01:49.7]} 33. Rc1
{[%clk 0:01:17.8]} 33... Bxc1 {[%clk 0:01:44.5]} 34. Rxc1 {[%clk 0:01:18.7]} 1-0

[Event "Early-Titled-Tuesday-Blitz-July-09-2024"]
[Site "Chess.com"]
[Date "2024.07.09"]
[Round "2"]
[White "Witik"]
[Black "klercaku"]
[Result "1-0"]
[WhiteElo "2686"]
[BlackElo "2392"]
[TimeControl "180+1"]
[EndTime "8:14:55 PDT"]
[Termination "Witik won by resignation"]

1. d4 {[%clk 0:02:56.9]} 1... d5 {[%clk 0:02:57.8]} 2. Bf4 {[%clk 0:02:54.3]}
2... e6 {[%clk 0:02:56.5]} 3. e3 {[%clk 0:02:53.5]} 3... c5 {[%clk 0:02:56.6]}
4. c3 {[%clk 0:02:53]} 4... Nf6 {[%clk 0:02:56.6]} 5. Nd2 {[%clk 0:02:48.6]}
5... Nc6 {[%clk 0:02:56.8]} 6. Bd3 {[%clk 0:02:47.9]} 6... cxd4 {[%clk
0:02:54.3]} 7. exd4 {[%clk 0:02:46.2]} 7... Be7 {[%clk 0:02:54.1]} 8. Ngf3
{[%clk 0:02:46.1]} 8... a6 {[%clk 0:02:49]} 9. O-O {[%clk 0:02:43.8]} 9... Nh5
{[%clk 0:02:47.2]} 10. Be3 {[%clk 0:02:43.4]} 10... Nf6 {[%clk 0:02:46.7]} 11.
h3 {[%clk 0:02:42.6]} 11... b5 {[%clk 0:02:40.8]} 12. Bf4 {[%clk 0:02:42.1]}
12... Qb6 {[%clk 0:02:31.6]} 13. Re1 {[%clk 0:02:40.2]} 13... O-O {[%clk
0:02:30.8]} 14. Ne5 {[%clk 0:02:39.8]} 14... a5 {[%clk 0:02:26.6]} 15. Ndf3
{[%clk 0:02:34.7]} 15... b4 {[%clk 0:02:20]} 16. Rc1 {[%clk 0:02:31.9]} 16...
Ba6 {[%clk 0:02:01.6]} 17. Bb1 {[%clk 0:02:28.2]} 17... bxc3 {[%clk 0:01:54.8]}
18. Rxc3 {[%clk 0:02:17.1]} 18... Nxe5 {[%clk 0:01:52.2]} 19. dxe5 {[%clk
0:02:17]} 19... Nd7 {[%clk 0:01:31.6]} 20. Be3 {[%clk 0:01:32.6]} 20... Qb7
{[%clk 0:01:03.8]} 21. Qc2 {[%clk 0:01:27.9]} 21... Rfc8 {[%clk 0:00:50.3]} 22.
Qxh7+ {[%clk 0:01:26.5]} 1-0

[Event "Early-Titled-Tuesday-Blitz-July-09-2024"]
[Site "Chess.com"]
[Date "2024.07.09"]
[Round "2"]
[White "Gnechko_Ruslan"]
[Black "JJDAREK"]
[Result "1-0"]
[WhiteElo "2536"]
[BlackElo "2334"]
[TimeControl "180+1"]
[EndTime "8:15:03 PDT"]
[Termination "Gnechko_Ruslan won by resignation"]

1. d4 {[%clk 0:03:00.9]} 1... d6 {[%clk 0:02:59.7]} 2. c4 {[%clk 0:03:01.8]}
2... e5 {[%clk 0:02:59.6]} 3. e3 {[%clk 0:03:01.9]} 3... exd4 {[%clk 0:02:59.1]}
4. exd4 {[%clk 0:03:01.7]} 4... g6 {[%clk 0:02:58.8]} 5. Nc3 {[%clk 0:03:02.1]}
5... Bg7 {[%clk 0:02:59.2]} 6. h3 {[%clk 0:03:01.6]} 6... Nc6 {[%clk 0:02:58.8]}
7. Nf3 {[%clk 0:03:01.3]} 7... Nge7 {[%clk 0:02:56.7]} 8. Be2 {[%clk 0:02:44.7]}
8... O-O {[%clk 0:02:55.5]} 9. O-O {[%clk 0:02:44.6]} 9... Re8 {[%clk
0:02:46.4]} 10. Re1 {[%clk 0:02:43.9]} 10... h6 {[%clk 0:02:44.2]} 11. d5 {[%clk
0:02:40.1]} 11... Ne5 {[%clk 0:02:39.1]} 12. Nd4 {[%clk 0:02:40.5]} 12... c5
{[%clk 0:02:11.1]} 13. dxc6 {[%clk 0:02:39.3]} 13... N5xc6 {[%clk 0:02:05.8]}
14. Ndb5 {[%clk 0:02:37.3]} 14... Nf5 {[%clk 0:02:01.8]} 15. Nd5 {[%clk
0:02:31.3]} 15... Nfd4 {[%clk 0:01:26.1]} 16. Nbc7 {[%clk 0:02:22.3]} 16... Rxe2
{[%clk 0:01:23.2]} 17. Rxe2 {[%clk 0:02:23.2]} 17... Nxe2+ {[%clk 0:01:22.9]}
18. Qxe2 {[%clk 0:02:24.1]} 18... Rb8 {[%clk 0:01:22.4]} 19. Bf4 {[%clk
0:02:10.8]} 19... g5 {[%clk 0:01:18]} 20. Bg3 {[%clk 0:02:02.1]} 20... Ne5
{[%clk 0:01:15.4]} 21. Rd1 {[%clk 0:01:54.2]} 21... Bf5 {[%clk 0:01:09.1]} 22.
c5 {[%clk 0:01:52.2]} 22... Rc8 {[%clk 0:00:51.7]} 23. cxd6 {[%clk 0:01:43.6]}
23... Qxd6 {[%clk 0:00:52.6]} 24. Nb5 {[%clk 0:01:37.5]} 24... Qe6 {[%clk
0:00:47.9]} 25. Nd4 {[%clk 0:01:30.9]} 25... Qd7 {[%clk 0:00:45.3]} 26. Nxf5
{[%clk 0:01:30.3]} 26... Qxf5 {[%clk 0:00:44.8]} 27. Ne7+ {[%clk 0:01:30]} 1-0

[Event "Early-Titled-Tuesday-Blitz-July-09-2024"]
[Site "Chess.com"]
[Date "2024.07.09"]
[Round "2"]
[White "johnmez"]
[Black "ploxoi"]
[Result "0-1"]
[WhiteElo "2246"]
[BlackElo "2481"]
[TimeControl "180+1"]
[EndTime "8:15:04 PDT"]
[Termination "ploxoi won by resignation"]

1. d4 {[%clk 0:03:00.9]} 1... e6 {[%clk 0:02:59.4]} 2. c4 {[%clk 0:03:01.4]}
2... d5 {[%clk 0:02:59.6]} 3. Nc3 {[%clk 0:03:01.1]} 3... c6 {[%clk 0:02:59.6]}
4. Nf3 {[%clk 0:03:00.4]} 4... dxc4 {[%clk 0:02:59.6]} 5. e4 {[%clk 0:02:55.5]}
5... b5 {[%clk 0:02:59]} 6. a4 {[%clk 0:02:37.1]} 6... Bb4 {[%clk 0:02:57.9]} 7.
Be2 {[%clk 0:02:30.8]} 7... Nf6 {[%clk 0:02:57.4]} 8. e5 {[%clk 0:02:24.2]} 8...
Ne4 {[%clk 0:02:56.8]} 9. Qc2 {[%clk 0:02:11.6]} 9... Nxc3 {[%clk 0:02:56.7]}
10. bxc3 {[%clk 0:02:12.1]} 10... Be7 {[%clk 0:02:57.2]} 11. O-O {[%clk
0:02:10.8]} 11... a6 {[%clk 0:02:57.2]} 12. Ba3 {[%clk 0:02:03.6]} 12... O-O
{[%clk 0:02:55.6]} 13. Bxe7 {[%clk 0:01:46.7]} 13... Qxe7 {[%clk 0:02:56.5]} 14.
Nd2 {[%clk 0:01:45.1]} 14... Nd7 {[%clk 0:02:48.2]} 15. Ne4 {[%clk 0:01:43.6]}
15... Nb6 {[%clk 0:02:48.5]} 16. Nd6 {[%clk 0:01:21.8]} 16... Rd8 {[%clk
0:02:44.2]} 17. f4 {[%clk 0:01:17.3]} 17... Rxd6 {[%clk 0:02:42.7]} 18. exd6
{[%clk 0:01:17.3]} 18... Qxd6 {[%clk 0:02:43.6]} 19. axb5 {[%clk 0:00:53.6]}
19... cxb5 {[%clk 0:02:44.5]} 20. Qe4 {[%clk 0:00:52.8]} 20... Nd5 {[%clk
0:02:40.8]} 21. f5 {[%clk 0:00:46.3]} 21... Rb8 {[%clk 0:02:25.6]} 22. fxe6
{[%clk 0:00:37]} 22... Bxe6 {[%clk 0:02:26.5]} 23. Rac1 {[%clk 0:00:34.1]} 23...
a5 {[%clk 0:02:23.5]} 24. Qe5 {[%clk 0:00:04]} 24... Qxe5 {[%clk 0:02:23.6]} 25.
dxe5 {[%clk 0:00:04.9]} 25... Rc8 {[%clk 0:02:24.5]} 26. Bf3 {[%clk 0:00:05]}
26... b4 {[%clk 0:02:24.9]} 27. cxb4 {[%clk 0:00:04.4]} 27... axb4 {[%clk
0:02:24.8]} 28. Bxd5 {[%clk 0:00:04]} 28... Bxd5 {[%clk 0:02:24.5]} 29. Rfd1
{[%clk 0:00:03.5]} 29... Be6 {[%clk 0:02:25.1]} 30. Rd4 {[%clk 0:00:03.7]} 30...
b3 {[%clk 0:02:24]} 31. Rc3 {[%clk 0:00:02.8]} 31... Ra8 {[%clk 0:02:19.7]} 0-1

[Event "Early-Titled-Tuesday-Blitz-July-09-2024"]
[Site "Chess.com"]
[Date "2024.07.09"]
[Round "2"]
[White "Kombinator01"]
[Black "Shankland"]
[Result "0-1"]
[WhiteElo "2416"]
[BlackElo "2874"]
[TimeControl "180+1"]
[EndTime "8:15:07 PDT"]
[Termination "Shankland won by resignation"]

1. d4 {[%clk 0:03:00.9]} 1... d5 {[%clk 0:02:56.4]} 2. Bf4 {[%clk 0:02:59]} 2...
c5 {[%clk 0:02:54.7]} 3. e3 {[%clk 0:02:54.8]} 3... Nc6 {[%clk 0:02:54.9]} 4.
Nf3 {[%clk 0:02:52.2]} 4... Nf6 {[%clk 0:02:54.4]} 5. Nbd2 {[%clk 0:02:49.6]}
5... Qb6 {[%clk 0:02:54.4]} 6. dxc5 {[%clk 0:02:46.8]} 6... Qxb2 {[%clk
0:02:54.4]} 7. Rb1 {[%clk 0:02:35.5]} 7... Qc3 {[%clk 0:02:53.4]} 8. Bb5 {[%clk
0:02:34.7]} 8... g6 {[%clk 0:02:45.8]} 9. O-O {[%clk 0:02:31.7]} 9... Bg7 {[%clk
0:02:45.5]} 10. Be5 {[%clk 0:02:25.3]} 10... Qxc5 {[%clk 0:02:41.7]} 11. c4
{[%clk 0:02:23.2]} 11... O-O {[%clk 0:02:31.5]} 12. Nb3 {[%clk 0:02:06.6]} 12...
Qb6 {[%clk 0:02:31.4]} 13. Bxc6 {[%clk 0:01:52.8]} 13... Qxc6 {[%clk 0:02:27.4]}
14. Bxf6 {[%clk 0:01:51.7]} 14... Qxf6 {[%clk 0:02:26.4]} 15. cxd5 {[%clk
0:01:49.5]} 15... Bf5 {[%clk 0:02:26.6]} 16. Rc1 {[%clk 0:01:46.6]} 16... Rac8
{[%clk 0:02:24.4]} 17. Nbd4 {[%clk 0:01:40.5]} 17... Be4 {[%clk 0:02:19.9]} 18.
Qb3 {[%clk 0:01:37.8]} 18... Qb6 {[%clk 0:02:14.6]} 19. Qa3 {[%clk 0:01:34.6]}
19... Bxd5 {[%clk 0:02:09.6]} 20. Qxe7 {[%clk 0:01:33.1]} 20... Rxc1 {[%clk
0:01:38.6]} 21. Rxc1 {[%clk 0:01:31.6]} 21... Bxa2 {[%clk 0:01:39.3]} 22. h4
{[%clk 0:01:17.7]} 22... Bd5 {[%clk 0:01:37.7]} 23. h5 {[%clk 0:01:13.3]} 23...
a5 {[%clk 0:01:37.5]} 24. Rc5 {[%clk 0:01:07.6]} 24... Bf6 {[%clk 0:01:35.7]}
25. Qc7 {[%clk 0:00:58]} 25... Qxc7 {[%clk 0:01:35.7]} 26. Rxc7 {[%clk
0:00:58.9]} 26... a4 {[%clk 0:01:36]} 27. Rc5 {[%clk 0:00:55.8]} 27... Bxf3
{[%clk 0:01:35.7]} 28. gxf3 {[%clk 0:00:54.5]} 28... Ra8 {[%clk 0:01:32.5]} 29.
Rc2 {[%clk 0:00:49.6]} 29... a3 {[%clk 0:01:31.9]} 30. Ra2 {[%clk 0:00:49.9]}
30... Bxd4 {[%clk 0:01:30.8]} 31. exd4 {[%clk 0:00:49.6]} 31... b5 {[%clk
0:01:31.5]} 0-1

[Event "Early-Titled-Tuesday-Blitz-July-09-2024"]
[Site "Chess.com"]
[Date "2024.07.09"]
[Round "2"]
[White "Zurability"]
[Black "TioCridineno"]
[Result "1-0"]
[WhiteElo "2700"]
[BlackElo "2404"]
[TimeControl "180+1"]
[EndTime "8:15:24 PDT"]
[Termination "Zurability won by resignation"]

1. d4 {[%clk 0:03:00.9]} 1... Nf6 {[%clk 0:02:59.8]} 2. c4 {[%clk 0:03:00.2]}
2... g6 {[%clk 0:03:00.3]} 3. Nc3 {[%clk 0:03:00.1]} 3... Bg7 {[%clk 0:03:00.8]}
4. e4 {[%clk 0:03:00.8]} 4... d6 {[%clk 0:03:01.1]} 5. Be2 {[%clk 0:03:00.1]}
5... O-O {[%clk 0:03:00.9]} 6. Nf3 {[%clk 0:03:00.7]} 6... e5 {[%clk 0:03:00.7]}
7. Be3 {[%clk 0:03:01.4]} 7... Ng4 {[%clk 0:03:00.6]} 8. Bg5 {[%clk 0:03:01.7]}
8... f6 {[%clk 0:03:01.2]} 9. Bc1 {[%clk 0:03:02.1]} 9... Nh6 {[%clk 0:03:00.9]}
10. Be3 {[%clk 0:02:59.8]} 10... Ng4 {[%clk 0:03:00.4]} 11. Bc1 {[%clk
0:03:00.2]} 11... Nh6 {[%clk 0:03:00.7]} 12. O-O {[%clk 0:03:00.8]} 12... Nf7
{[%clk 0:02:59.2]} 13. Be3 {[%clk 0:02:55.1]} 13... Nc6 {[%clk 0:02:58.9]} 14.
h3 {[%clk 0:02:47.3]} 14... f5 {[%clk 0:02:51.4]} 15. dxe5 {[%clk 0:02:44.1]}
15... Nfxe5 {[%clk 0:02:46.8]} 16. exf5 {[%clk 0:02:40.3]} 16... Bxf5 {[%clk
0:02:45.8]} 17. Nxe5 {[%clk 0:02:38.1]} 17... Bxe5 {[%clk 0:02:39.5]} 18. Qd2
{[%clk 0:02:32.2]} 18... Qd7 {[%clk 0:02:31.2]} 19. f4 {[%clk 0:02:21.4]} 19...
Bg7 {[%clk 0:02:21.5]} 20. Bf3 {[%clk 0:02:21.4]} 20... h5 {[%clk 0:02:15]} 21.
Rae1 {[%clk 0:02:17.4]} 21... Rfe8 {[%clk 0:02:14.8]} 22. Nd5 {[%clk 0:02:10.1]}
22... Be4 {[%clk 0:02:06.2]} 23. Bxe4 {[%clk 0:01:49.2]} 23... Rxe4 {[%clk
0:02:05.1]} 24. f5 {[%clk 0:01:47.7]} 24... gxf5 {[%clk 0:01:55]} 25. Bh6 {[%clk
0:01:46.1]} 25... Rae8 {[%clk 0:00:53.4]} 26. Rxe4 {[%clk 0:01:31.9]} 26... Rxe4
{[%clk 0:00:48.3]} 27. Qg5 {[%clk 0:01:31.9]} 27... Kh7 {[%clk 0:00:43.2]} 28.
Bxg7 {[%clk 0:01:26.1]} 28... Qxg7 {[%clk 0:00:42.8]} 29. Qxf5+ {[%clk
0:01:24.4]} 29... Qg6 {[%clk 0:00:39.8]} 30. Nf6+ {[%clk 0:01:20.9]} 30... Kg7
{[%clk 0:00:39]} 31. Qxg6+ {[%clk 0:01:20.6]} 1-0

[Event "Early-Titled-Tuesday-Blitz-July-09-2024"]
[Site "Chess.com"]
[Date "2024.07.09"]
[Round "2"]
[White "A4RookA3"]
[Black "krstulov_alex"]
[Result "0-1"]
[WhiteElo "2395"]
[BlackElo "2658"]
[TimeControl "180+1"]
[EndTime "8:15:26 PDT"]
[Termination "krstulov_alex won by resignation"]

1. d4 {[%clk 0:03:00.9]} 1... Na6 {[%clk 0:02:53.9]} 2. e4 {[%clk 0:02:58.2]}
2... c6 {[%clk 0:02:53.7]} 3. c4 {[%clk 0:02:33.3]} 3... e5 {[%clk 0:02:52.4]}
4. Nf3 {[%clk 0:02:25.5]} 4... d6 {[%clk 0:02:47.9]} 5. dxe5 {[%clk 0:02:21.4]}
5... Bg4 {[%clk 0:02:47.4]} 6. Nc3 {[%clk 0:02:17]} 6... dxe5 {[%clk 0:02:13.2]}
7. Qxd8+ {[%clk 0:02:11.8]} 7... Rxd8 {[%clk 0:02:14.1]} 8. Nxe5 {[%clk
0:02:11.5]} 8... Nb4 {[%clk 0:02:10]} 9. Nxg4 {[%clk 0:01:54.3]} 9... Nc2+
{[%clk 0:02:01.5]} 10. Ke2 {[%clk 0:01:53.9]} 10... Nxa1 {[%clk 0:02:02.4]} 11.
Ne3 {[%clk 0:01:54]} 11... Bc5 {[%clk 0:01:56.7]} 12. Ncd1 {[%clk 0:00:56.7]}
12... Nf6 {[%clk 0:01:49.9]} 13. f3 {[%clk 0:00:55.2]} 13... O-O {[%clk
0:01:42.3]} 14. b3 {[%clk 0:00:52.8]} 14... a5 {[%clk 0:01:39.5]} 15. Bb2 {[%clk
0:00:50.6]} 15... Bd4 {[%clk 0:01:40.1]} 16. g3 {[%clk 0:00:22.7]} 16... a4
{[%clk 0:01:33]} 17. Bh3 {[%clk 0:00:11.6]} 17... axb3 {[%clk 0:01:30.2]} 18.
Bxd4 {[%clk 0:00:02.7]} 18... Rxd4 {[%clk 0:01:26.9]} 19. axb3 {[%clk
0:00:03.6]} 19... Nxb3 {[%clk 0:01:27.8]} 0-1

[Event "Early-Titled-Tuesday-Blitz-July-09-2024"]
[Site "Chess.com"]
[Date "2024.07.09"]
[Round "2"]
[White "Adar_07"]
[Black "zverr1"]
[Result "0-1"]
[WhiteElo "2761"]
[BlackElo "2564"]
[TimeControl "180+1"]
[EndTime "8:15:29 PDT"]
[Termination "zverr1 won by resignation"]

1. e4 {[%clk 0:03:00.9]} 1... c5 {[%clk 0:02:58.5]} 2. Nf3 {[%clk 0:02:59.5]}
2... g6 {[%clk 0:02:58.3]} 3. d4 {[%clk 0:02:59.2]} 3... cxd4 {[%clk 0:02:59.2]}
4. Nxd4 {[%clk 0:03:00.1]} 4... Nc6 {[%clk 0:02:59.3]} 5. c4 {[%clk 0:02:59.5]}
5... Nf6 {[%clk 0:02:59.4]} 6. Be3 {[%clk 0:02:58.6]} 6... Nxe4 {[%clk
0:02:59.4]} 7. Bd3 {[%clk 0:02:57.7]} 7... Nc5 {[%clk 0:02:40.8]} 8. Nxc6 {[%clk
0:02:54.5]} 8... Nxd3+ {[%clk 0:02:40.3]} 9. Qxd3 {[%clk 0:02:55.1]} 9... dxc6
{[%clk 0:02:29.5]} 10. Qc3 {[%clk 0:02:54]} 10... f6 {[%clk 0:02:25.7]} 11. h4
{[%clk 0:02:53.8]} 11... Bg7 {[%clk 0:02:08.6]} 12. h5 {[%clk 0:02:52.4]} 12...
Kf7 {[%clk 0:02:09]} 13. h6 {[%clk 0:02:34.6]} 13... Bf8 {[%clk 0:02:08.4]} 14.
Nd2 {[%clk 0:02:35.2]} 14... e5 {[%clk 0:02:03]} 15. O-O-O {[%clk 0:02:34.8]}
15... Qe7 {[%clk 0:01:50.6]} 16. Ne4 {[%clk 0:02:19.1]} 16... Qb4 {[%clk
0:01:33.6]} 17. Qc2 {[%clk 0:02:19]} 17... Be6 {[%clk 0:01:21.5]} 18. Rh4 {[%clk
0:02:05.2]} 18... Be7 {[%clk 0:00:56]} 19. a3 {[%clk 0:02:05]} 19... Qa5 {[%clk
0:00:46]} 20. f4 {[%clk 0:01:59.6]} 20... Rhd8 {[%clk 0:00:32.4]} 21. fxe5
{[%clk 0:01:57.3]} 21... Rxd1+ {[%clk 0:00:30.9]} 22. Qxd1 {[%clk 0:01:58.2]}
22... Qxe5 {[%clk 0:00:28.1]} 23. Bd4 {[%clk 0:01:54.7]} 23... Qf5 {[%clk
0:00:25.4]} 24. Bxf6 {[%clk 0:01:52.5]} 24... Rd8 {[%clk 0:00:22.4]} 25. Qxd8
{[%clk 0:01:52.3]} 25... Bxd8 {[%clk 0:00:20.6]} 26. Nd6+ {[%clk 0:01:52.1]}
26... Kxf6 {[%clk 0:00:19.8]} 27. Nxf5 {[%clk 0:01:53]} 27... Bxf5 {[%clk
0:00:16.4]} 28. Rd4 {[%clk 0:01:52.7]} 28... Bb6 {[%clk 0:00:16]} 29. Rd1 {[%clk
0:01:35.2]} 29... Be3+ {[%clk 0:00:16]} 0-1

[Event "Early-Titled-Tuesday-Blitz-July-09-2024"]
[Site "Chess.com"]
[Date "2024.07.09"]
[Round "2"]
[White "Silent-Killer100"]
[Black "mapleaff"]
[Result "1/2-1/2"]
[WhiteElo "2521"]
[BlackElo "2336"]
[TimeControl "180+1"]
[EndTime "8:15:31 PDT"]
[Termination "Game drawn by agreement"]

1. Nf3 {[%clk 0:03:00.9]} 1... Nf6 {[%clk 0:02:43.3]} 2. g3 {[%clk 0:03:01.7]}
2... g6 {[%clk 0:02:43.6]} 3. Bg2 {[%clk 0:03:01.8]} 3... Bg7 {[%clk 0:02:44.3]}
4. O-O {[%clk 0:03:02.6]} 4... O-O {[%clk 0:02:44.9]} 5. d3 {[%clk 0:03:01.4]}
5... d5 {[%clk 0:02:45.1]} 6. c3 {[%clk 0:02:58.2]} 6... c5 {[%clk 0:02:45.1]}
7. Re1 {[%clk 0:02:57.5]} 7... Nc6 {[%clk 0:02:45.2]} 8. Qc2 {[%clk 0:02:56.5]}
8... Bg4 {[%clk 0:02:28.9]} 9. e4 {[%clk 0:02:53.2]} 9... dxe4 {[%clk
0:02:12.2]} 10. dxe4 {[%clk 0:02:54.1]} 10... e5 {[%clk 0:02:11.7]} 11. Be3
{[%clk 0:02:52.9]} 11... b6 {[%clk 0:02:09.6]} 12. Na3 {[%clk 0:02:50.3]} 12...
Qc7 {[%clk 0:01:58.7]} 13. h3 {[%clk 0:02:46.5]} 13... Bxf3 {[%clk 0:01:51.8]}
14. Bxf3 {[%clk 0:02:47.4]} 14... a6 {[%clk 0:01:49.5]} 15. Rad1 {[%clk
0:02:45.9]} 15... Rfd8 {[%clk 0:01:46.3]} 16. Bg5 {[%clk 0:02:42.2]} 16... h6
{[%clk 0:01:45.9]} 17. Bxf6 {[%clk 0:02:42.2]} 17... Bxf6 {[%clk 0:01:46.8]} 18.
Nc4 {[%clk 0:02:43]} 18... b5 {[%clk 0:01:42.8]} 19. Ne3 {[%clk 0:02:43.2]}
19... Ne7 {[%clk 0:01:43.4]} 20. Nd5 {[%clk 0:02:43.5]} 20... Nxd5 {[%clk
0:01:43]} 21. exd5 {[%clk 0:02:43.3]} 21... Rd6 {[%clk 0:01:34.1]} 22. c4 {[%clk
0:02:43.3]} 22... Kg7 {[%clk 0:01:23.4]} 23. b3 {[%clk 0:02:43.5]} 23... b4
{[%clk 0:01:14.5]} 24. h4 {[%clk 0:02:43.6]} 24... h5 {[%clk 0:01:12.1]} 25. Re4
{[%clk 0:02:39.7]} 25... a5 {[%clk 0:01:10.9]} 26. Qe2 {[%clk 0:02:36.5]} 26...
Re8 {[%clk 0:00:59.8]} 27. g4 {[%clk 0:02:36]} 27... hxg4 {[%clk 0:00:56.4]} 28.
Rxg4 {[%clk 0:02:36.9]} 28... Rh8 {[%clk 0:00:54.9]} 29. Qe4 {[%clk 0:02:29.1]}
29... Qe7 {[%clk 0:00:41.5]} 30. Re1 {[%clk 0:02:21.9]} 30... Rxh4 {[%clk
0:00:30.7]} 31. Rxh4 {[%clk 0:02:21.4]} 31... Bxh4 {[%clk 0:00:31.6]} 32. Qxe5+
{[%clk 0:02:21.9]} 32... Qxe5 {[%clk 0:00:30.9]} 33. Rxe5 {[%clk 0:02:22.8]}
33... Kf8 {[%clk 0:00:29.2]} 34. Kg2 {[%clk 0:02:21.8]} 34... Bf6 {[%clk
0:00:28.6]} 35. Re2 {[%clk 0:02:21.3]} 35... Rd7 {[%clk 0:00:20.5]} 36. Kg3
{[%clk 0:02:19.4]} 36... Re7 {[%clk 0:00:19]} 37. Be4 {[%clk 0:02:19.7]} 37...
Be5+ {[%clk 0:00:18.1]} 38. f4 {[%clk 0:02:19]} 38... Bd6 {[%clk 0:00:18.5]} 39.
Kf3 {[%clk 0:02:14.3]} 39... f5 {[%clk 0:00:18.5]} 40. Bd3 {[%clk 0:02:13.2]}
40... Rxe2 {[%clk 0:00:18.8]} 41. Bxe2 {[%clk 0:02:14]} 41... Kg7 {[%clk
0:00:19]} 42. Bd1 {[%clk 0:02:14]} 42... Kf6 {[%clk 0:00:19.5]} 43. Bc2 {[%clk
0:02:14.1]} 43... g5 {[%clk 0:00:19.3]} 44. fxg5+ {[%clk 0:02:11.8]} 44... Kxg5
{[%clk 0:00:20.2]} 1/2-1/2

[Event "Early-Titled-Tuesday-Blitz-July-09-2024"]
[Site "Chess.com"]
[Date "2024.07.09"]
[Round "2"]
[White "santig8"]
[Black "Alex_Banzea"]
[Result "0-1"]
[WhiteElo "2293"]
[BlackElo "2705"]
[TimeControl "180+1"]
[EndTime "8:15:33 PDT"]
[Termination "Alex_Banzea won by resignation"]

1. e4 {[%clk 0:03:00.9]} 1... c6 {[%clk 0:02:57.9]} 2. d4 {[%clk 0:03:00.6]}
2... d5 {[%clk 0:02:58.4]} 3. e5 {[%clk 0:03:00.7]} 3... c5 {[%clk 0:02:58.1]}
4. dxc5 {[%clk 0:03:00.5]} 4... Nc6 {[%clk 0:02:58.8]} 5. f4 {[%clk 0:02:57.5]}
5... Nh6 {[%clk 0:02:58.5]} 6. Be3 {[%clk 0:02:55.5]} 6... g5 {[%clk 0:02:50]}
7. Nf3 {[%clk 0:02:49.5]} 7... Nf5 {[%clk 0:02:47.7]} 8. Bf2 {[%clk 0:02:38.4]}
8... gxf4 {[%clk 0:02:46.7]} 9. c3 {[%clk 0:02:37.4]} 9... Bg7 {[%clk
0:02:37.2]} 10. Bb5 {[%clk 0:02:28.1]} 10... e6 {[%clk 0:02:35.9]} 11. O-O
{[%clk 0:02:26.9]} 11... Bd7 {[%clk 0:02:33.8]} 12. b4 {[%clk 0:02:25.6]} 12...
Nxe5 {[%clk 0:02:29.8]} 13. Bxd7+ {[%clk 0:02:13.7]} 13... Qxd7 {[%clk
0:02:29.3]} 14. Re1 {[%clk 0:02:09.9]} 14... Ng4 {[%clk 0:02:25.3]} 15. Bd4
{[%clk 0:01:57.1]} 15... Nge3 {[%clk 0:02:03.6]} 16. Rxe3 {[%clk 0:01:47.7]}
16... Nxe3 {[%clk 0:02:00.9]} 17. Qd3 {[%clk 0:01:38.6]} 17... Rg8 {[%clk
0:01:52.5]} 18. g3 {[%clk 0:01:22.6]} 18... Nf5 {[%clk 0:01:46.4]} 19. Bf2
{[%clk 0:01:13]} 19... fxg3 {[%clk 0:01:42.6]} 20. hxg3 {[%clk 0:01:12.8]} 20...
Bf6 {[%clk 0:01:39.1]} 21. Kg2 {[%clk 0:01:11.3]} 21... Qc7 {[%clk 0:01:36]} 22.
Nd4 {[%clk 0:01:04.6]} 22... Bxd4 {[%clk 0:01:19.8]} 23. cxd4 {[%clk 0:01:05.5]}
23... h5 {[%clk 0:01:01.2]} 24. Nc3 {[%clk 0:00:58]} 24... h4 {[%clk 0:01:01.3]}
25. Nxd5 {[%clk 0:00:56.9]} 25... Qc6 {[%clk 0:00:58.2]} 0-1